[Event "Late-Titled-Tuesday-Blitz-February-20-2024"]
[Site "Chess.com"]
[Date "2024.02.20"]
[Round "9"]
[White "dropstoneDP"]
[Black "LuckyTiger"]
[Result "1-0"]
[WhiteElo "3008"]
[BlackElo "2778"]
[TimeControl "180+1"]
[EndTime "15:42:56 PST"]
[Termination "dropstoneDP won by resignation"]

1. e4 {[%clk 0:03:00.9]} 1... c5 {[%clk 0:02:58]} 2. Nf3 {[%clk 0:03:01]} 2...
d6 {[%clk 0:02:58.7]} 3. d4 {[%clk 0:03:01.4]} 3... Nf6 {[%clk 0:02:59.5]} 4.
Nc3 {[%clk 0:03:01.3]} 4... cxd4 {[%clk 0:03:00.2]} 5. Nxd4 {[%clk 0:03:02.1]}
5... a6 {[%clk 0:03:00.9]} 6. Be2 {[%clk 0:03:01.8]} 6... e5 {[%clk 0:03:00.9]}
7. Nb3 {[%clk 0:03:02]} 7... Be7 {[%clk 0:03:01.6]} 8. O-O {[%clk 0:03:01.5]}
8... O-O {[%clk 0:03:02.3]} 9. Qd3 {[%clk 0:03:01.7]} 9... Be6 {[%clk
0:02:59.1]} 10. Nd5 {[%clk 0:03:01.1]} 10... Bxd5 {[%clk 0:02:58.6]} 11. exd5
{[%clk 0:03:02]} 11... Nfd7 {[%clk 0:02:59.2]} 12. Be3 {[%clk 0:03:01.4]} 12...
Bg5 {[%clk 0:02:55.1]} 13. c4 {[%clk 0:02:52.5]} 13... a5 {[%clk 0:02:52.9]} 14.
Nd2 {[%clk 0:02:36.9]} 14... Bxe3 {[%clk 0:02:46.4]} 15. Qxe3 {[%clk 0:02:37.8]}
15... Nc5 {[%clk 0:02:45.9]} 16. b3 {[%clk 0:02:33.9]} 16... f5 {[%clk
0:02:41.6]} 17. a3 {[%clk 0:02:29.7]} 17... Nba6 {[%clk 0:02:11.8]} 18. Rab1
{[%clk 0:02:25.6]} 18... Nd7 {[%clk 0:02:01]} 19. b4 {[%clk 0:02:24]} 19... h6
{[%clk 0:01:36.3]} 20. c5 {[%clk 0:02:20.1]} 20... dxc5 {[%clk 0:01:32.7]} 21.
Bxa6 {[%clk 0:02:19.6]} 21... Rxa6 {[%clk 0:01:30.4]} 22. bxc5 {[%clk 0:02:20]}
22... f4 {[%clk 0:01:27.2]} 23. Qc3 {[%clk 0:02:17.8]} 23... Qc8 {[%clk
0:01:15.4]} 24. Rfc1 {[%clk 0:02:16.4]} 24... Rg6 {[%clk 0:00:39.1]} 25. Qc2
{[%clk 0:01:56.8]} 25... Qe8 {[%clk 0:00:09]} 26. Rxb7 {[%clk 0:01:54.6]} 26...
Nf6 {[%clk 0:00:09.2]} 27. d6 {[%clk 0:01:46.8]} 27... Rxg2+ {[%clk 0:00:09.4]}
28. Kxg2 {[%clk 0:01:46.2]} 28... Qc6+ {[%clk 0:00:09.8]} 29. f3 {[%clk
0:01:44.8]} 29... Qxb7 {[%clk 0:00:08.5]} 30. Qb3+ {[%clk 0:01:45]} 30... Qf7
{[%clk 0:00:07.2]} 31. Qxf7+ {[%clk 0:01:43.8]} 31... Kxf7 {[%clk 0:00:08.1]}
32. c6 {[%clk 0:01:38.7]} 32... Ke6 {[%clk 0:00:08.4]} 33. Nc4 {[%clk 0:01:21]}
33... Rc8 {[%clk 0:00:09]} 34. d7 {[%clk 0:01:19.8]} 1-0

[Event "Late-Titled-Tuesday-Blitz-February-20-2024"]
[Site "Chess.com"]
[Date "2024.02.20"]
[Round "9"]
[White "morte-negra"]
[Black "PNEPaul"]
[Result "0-1"]
[WhiteElo "2003"]
[BlackElo "1994"]
[TimeControl "180+1"]
[EndTime "15:42:58 PST"]
[Termination "PNEPaul won on time"]

1. e4 {[%clk 0:02:55.7]} 1... e5 {[%clk 0:02:59.2]} 2. Nf3 {[%clk 0:02:55.3]}
2... Nc6 {[%clk 0:02:57.9]} 3. Bc4 {[%clk 0:02:55.3]} 3... Be7 {[%clk
0:02:57.4]} 4. d4 {[%clk 0:02:54]} 4... exd4 {[%clk 0:02:56.8]} 5. Nxd4 {[%clk
0:02:53.8]} 5... d6 {[%clk 0:02:56.8]} 6. O-O {[%clk 0:02:49.2]} 6... Nf6 {[%clk
0:02:56.7]} 7. Re1 {[%clk 0:02:48.3]} 7... O-O {[%clk 0:02:56.4]} 8. Nc3 {[%clk
0:02:44.3]} 8... Ne5 {[%clk 0:02:53.8]} 9. Bb3 {[%clk 0:02:42.5]} 9... c5 {[%clk
0:02:53.8]} 10. Nf5 {[%clk 0:02:37]} 10... Bxf5 {[%clk 0:02:52.7]} 11. exf5
{[%clk 0:02:36.4]} 11... c4 {[%clk 0:02:53]} 12. f4 {[%clk 0:01:58.4]} 12...
Neg4 {[%clk 0:02:51.8]} 13. Bxc4 {[%clk 0:01:21.6]} 13... Qb6+ {[%clk
0:02:49.3]} 14. Be3 {[%clk 0:01:21.3]} 14... Nxe3 {[%clk 0:02:46.2]} 15. Qe2
{[%clk 0:01:20.2]} 15... Nxc4+ {[%clk 0:02:41.5]} 16. Kh1 {[%clk 0:01:20.8]}
16... Rfe8 {[%clk 0:02:12.9]} 17. Qxc4 {[%clk 0:01:19.6]} 17... Ng4 {[%clk
0:02:12.8]} 18. h3 {[%clk 0:00:55.9]} 18... Ne3 {[%clk 0:01:54.5]} 19. Qd3
{[%clk 0:00:46.7]} 19... Bf6 {[%clk 0:01:50.5]} 20. Ne4 {[%clk 0:00:38.8]} 20...
Bh4 {[%clk 0:01:25.8]} 21. Rxe3 {[%clk 0:00:37.3]} 21... d5 {[%clk 0:01:22.7]}
22. Nc5 {[%clk 0:00:01.6]} 22... Qxc5 {[%clk 0:01:14.9]} 23. Rxe8+ {[%clk
0:00:02.2]} 23... Rxe8 {[%clk 0:01:13.7]} 24. g3 {[%clk 0:00:02.8]} 24... Bf6
{[%clk 0:01:10.6]} 25. c3 {[%clk 0:00:01.9]} 25... Qf2 {[%clk 0:01:00.5]} 26.
Rf1 {[%clk 0:00:02.5]} 26... Qe2 {[%clk 0:01:00.4]} 0-1

[Event "Late-Titled-Tuesday-Blitz-February-20-2024"]
[Site "Chess.com"]
[Date "2024.02.20"]
[Round "9"]
[White "djano"]
[Black "MusicCityMaster"]
[Result "0-1"]
[WhiteElo "2639"]
[BlackElo "2566"]
[TimeControl "180+1"]
[EndTime "15:43:24 PST"]
[Termination "MusicCityMaster won by resignation"]

1. Nc3 {[%clk 0:03:00.9]} 1... e6 {[%clk 0:02:59.6]} 2. d4 {[%clk 0:02:59.3]}
2... d5 {[%clk 0:02:55.9]} 3. Bf4 {[%clk 0:02:57.2]} 3... c6 {[%clk 0:02:55.9]}
4. Nf3 {[%clk 0:02:56.9]} 4... Nf6 {[%clk 0:02:55.5]} 5. e3 {[%clk 0:02:57]}
5... Nbd7 {[%clk 0:02:54.5]} 6. Bd3 {[%clk 0:02:57.1]} 6... b5 {[%clk
0:02:54.8]} 7. O-O {[%clk 0:02:55.9]} 7... b4 {[%clk 0:02:54.7]} 8. Ne2 {[%clk
0:02:53.9]} 8... a5 {[%clk 0:02:54.5]} 9. c4 {[%clk 0:02:50.8]} 9... bxc3 {[%clk
0:02:50.6]} 10. Bc4 {[%clk 0:02:51.7]} 10... dxc4 {[%clk 0:02:49.9]} 11. Nxc3
{[%clk 0:02:45.6]} 11... Be7 {[%clk 0:02:48.2]} 12. e4 {[%clk 0:02:45.5]} 12...
O-O {[%clk 0:02:48]} 13. h3 {[%clk 0:02:43.7]} 13... Bb7 {[%clk 0:02:47.4]} 14.
Re1 {[%clk 0:02:44]} 14... Re8 {[%clk 0:02:43.3]} 15. Qa4 {[%clk 0:02:42.6]}
15... Nb6 {[%clk 0:02:40.3]} 16. Qc2 {[%clk 0:02:41.1]} 16... c5 {[%clk
0:02:36.9]} 17. Rad1 {[%clk 0:02:38.9]} 17... cxd4 {[%clk 0:02:33.4]} 18. Nxd4
{[%clk 0:02:39.8]} 18... Nfd7 {[%clk 0:02:28.6]} 19. Ndb5 {[%clk 0:02:37.8]}
19... Bb4 {[%clk 0:02:18.5]} 20. Nc7 {[%clk 0:02:32.7]} 20... Qf6 {[%clk
0:02:17.7]} 21. Nxa8 {[%clk 0:02:27.3]} 21... Bxa8 {[%clk 0:02:17.6]} 22. Bg3
{[%clk 0:02:20.7]} 22... Nc5 {[%clk 0:02:12.9]} 23. Re3 {[%clk 0:01:55.8]} 23...
Nd3 {[%clk 0:02:08.3]} 24. e5 {[%clk 0:01:45.9]} 24... Qg6 {[%clk 0:02:05.6]}
25. a3 {[%clk 0:01:36.5]} 25... Bc5 {[%clk 0:02:03.2]} 26. Rexd3 {[%clk
0:01:21.7]} 26... cxd3 {[%clk 0:02:02]} 27. Rxd3 {[%clk 0:01:22.6]} 27... h5
{[%clk 0:01:55.2]} 28. Ne2 {[%clk 0:01:16.9]} 28... Nd5 {[%clk 0:01:20.4]} 29.
Qa4 {[%clk 0:00:59.8]} 29... Rf8 {[%clk 0:01:10.4]} 30. Rf3 {[%clk 0:00:58.2]}
30... Nb6 {[%clk 0:01:03.9]} 31. Qxa5 {[%clk 0:00:56.1]} 31... Bxf3 {[%clk
0:01:03.6]} 32. gxf3 {[%clk 0:00:57]} 32... Qc2 {[%clk 0:00:54.8]} 33. Nc3
{[%clk 0:00:54.6]} 33... Bd4 {[%clk 0:00:50.4]} 34. Ne4 {[%clk 0:00:54.3]} 34...
Nd5 {[%clk 0:00:45.6]} 35. Kg2 {[%clk 0:00:47.7]} 35... Ne3+ {[%clk 0:00:43.6]}
36. Kh2 {[%clk 0:00:48.2]} 36... Nf5 {[%clk 0:00:43.2]} 37. h4 {[%clk 0:00:41]}
37... Qxb2 {[%clk 0:00:41.1]} 38. f4 {[%clk 0:00:40.3]} 38... Nh6 {[%clk
0:00:33.9]} 39. Ng5 {[%clk 0:00:36.3]} 39... Ng4+ {[%clk 0:00:32.8]} 40. Kh3
{[%clk 0:00:36.9]} 40... Bxf2 {[%clk 0:00:29.3]} 0-1

[Event "Late-Titled-Tuesday-Blitz-February-20-2024"]
[Site "Chess.com"]
[Date "2024.02.20"]
[Round "9"]
[White "ATM622"]
[Black "ansko1999"]
[Result "1-0"]
[WhiteElo "2512"]
[BlackElo "2648"]
[TimeControl "180+1"]
[EndTime "15:43:26 PST"]
[Termination "ATM622 won on time"]

1. d4 {[%clk 0:03:00.9]} 1... d6 {[%clk 0:02:58.4]} 2. c4 {[%clk 0:03:00.9]}
2... e5 {[%clk 0:02:57.7]} 3. dxe5 {[%clk 0:02:55.8]} 3... dxe5 {[%clk
0:02:58.6]} 4. Qxd8+ {[%clk 0:02:55.5]} 4... Kxd8 {[%clk 0:02:59.5]} 5. Nc3
{[%clk 0:02:55.2]} 5... c6 {[%clk 0:02:58.6]} 6. e4 {[%clk 0:02:55.2]} 6... Bc5
{[%clk 0:02:52.2]} 7. Bd3 {[%clk 0:02:48.6]} 7... Be6 {[%clk 0:02:48.4]} 8. Nge2
{[%clk 0:02:48.4]} 8... Nd7 {[%clk 0:02:45.3]} 9. f4 {[%clk 0:02:47.9]} 9... f6
{[%clk 0:02:39.3]} 10. a3 {[%clk 0:02:45.7]} 10... a5 {[%clk 0:02:37.4]} 11. Bd2
{[%clk 0:02:39.4]} 11... Ne7 {[%clk 0:02:33.8]} 12. Na4 {[%clk 0:02:33.5]} 12...
Bd6 {[%clk 0:02:17.7]} 13. f5 {[%clk 0:02:28.4]} 13... Bf7 {[%clk 0:02:17.8]}
14. Be3 {[%clk 0:02:28.3]} 14... Rb8 {[%clk 0:02:01.8]} 15. c5 {[%clk
0:02:13.8]} 15... Bc7 {[%clk 0:02:01.6]} 16. b4 {[%clk 0:02:10.9]} 16... axb4
{[%clk 0:01:53.8]} 17. axb4 {[%clk 0:02:10.7]} 17... b6 {[%clk 0:01:49.6]} 18.
cxb6 {[%clk 0:02:02.9]} 18... Nxb6 {[%clk 0:01:50]} 19. Nc5 {[%clk 0:01:55.7]}
19... Ra8 {[%clk 0:01:38.1]} 20. O-O {[%clk 0:01:49.8]} 20... Rxa1 {[%clk
0:01:30.3]} 21. Rxa1 {[%clk 0:01:48.5]} 21... Kc8 {[%clk 0:01:29.7]} 22. Ba6+
{[%clk 0:01:42.2]} 22... Kb8 {[%clk 0:01:28.4]} 23. Bd3 {[%clk 0:01:23.9]} 23...
Kc8 {[%clk 0:01:20]} 24. Ra7 {[%clk 0:01:10.3]} 24... Bd6 {[%clk 0:00:29.9]} 25.
Ba6+ {[%clk 0:01:07.4]} 25... Kb8 {[%clk 0:00:26.5]} 26. Rb7+ {[%clk 0:01:06.9]}
26... Ka8 {[%clk 0:00:24.8]} 27. Rxb6 {[%clk 0:01:07.2]} 27... Rd8 {[%clk
0:00:21.7]} 28. Bb7+ {[%clk 0:01:05]} 28... Kb8 {[%clk 0:00:14.1]} 29. Na6+
{[%clk 0:00:59.3]} 29... Ka7 {[%clk 0:00:14.5]} 30. Rb5+ {[%clk 0:00:49.3]}
30... c5 {[%clk 0:00:11]} 31. bxc5 {[%clk 0:00:45]} 1-0

[Event "Late-Titled-Tuesday-Blitz-February-20-2024"]
[Site "Chess.com"]
[Date "2024.02.20"]
[Round "9"]
[White "Polstastisch"]
[Black "mirciulica14"]
[Result "0-1"]
[WhiteElo "2425"]
[BlackElo "2659"]
[TimeControl "180+1"]
[EndTime "15:43:29 PST"]
[Termination "mirciulica14 won by checkmate"]

1. e4 {[%clk 0:01:52.3]} 1... g6 {[%clk 0:02:59.8]} 2. d4 {[%clk 0:01:50]} 2...
c6 {[%clk 0:03:00.1]} 3. Nc3 {[%clk 0:01:47]} 3... d5 {[%clk 0:03:00]} 4. h3
{[%clk 0:01:46.9]} 4... dxe4 {[%clk 0:02:59.7]} 5. Nxe4 {[%clk 0:01:47.8]} 5...
Nf6 {[%clk 0:03:00]} 6. Nxf6+ {[%clk 0:01:37.6]} 6... exf6 {[%clk 0:03:00.9]} 7.
Nf3 {[%clk 0:01:37.6]} 7... Bg7 {[%clk 0:03:00.9]} 8. Bd3 {[%clk 0:01:37]} 8...
O-O {[%clk 0:02:59.1]} 9. O-O {[%clk 0:01:36.7]} 9... Re8 {[%clk 0:02:57.8]} 10.
Re1 {[%clk 0:01:34.5]} 10... Be6 {[%clk 0:02:57.7]} 11. c4 {[%clk 0:01:28.9]}
11... Nd7 {[%clk 0:02:57.4]} 12. Bf4 {[%clk 0:01:25.1]} 12... Nf8 {[%clk
0:02:30.9]} 13. Qc2 {[%clk 0:01:12.7]} 13... Qd7 {[%clk 0:02:23.2]} 14. Rad1
{[%clk 0:01:11.3]} 14... Rad8 {[%clk 0:02:23.4]} 15. a4 {[%clk 0:00:53.3]} 15...
Qc8 {[%clk 0:02:12.9]} 16. a5 {[%clk 0:00:49.2]} 16... g5 {[%clk 0:02:09.5]} 17.
Bg3 {[%clk 0:00:44]} 17... h5 {[%clk 0:02:07.9]} 18. Re2 {[%clk 0:00:26.2]}
18... g4 {[%clk 0:01:04.9]} 19. hxg4 {[%clk 0:00:25.4]} 19... Bxg4 {[%clk
0:01:05.8]} 20. Re3 {[%clk 0:00:23.3]} 20... Bh6 {[%clk 0:00:59.8]} 21. Rxe8
{[%clk 0:00:19.9]} 21... Rxe8 {[%clk 0:01:00.7]} 22. Be2 {[%clk 0:00:14.6]}
22... Qe6 {[%clk 0:00:52.9]} 23. Kf1 {[%clk 0:00:14.1]} 23... Ng6 {[%clk
0:00:47.1]} 24. Ng1 {[%clk 0:00:12.9]} 24... h4 {[%clk 0:00:44.4]} 25. Bh2
{[%clk 0:00:12]} 25... Bf4 {[%clk 0:00:40.9]} 26. Bxf4 {[%clk 0:00:09.3]} 26...
Nxf4 {[%clk 0:00:41.8]} 27. Bf3 {[%clk 0:00:06.1]} 27... h3 {[%clk 0:00:35.2]}
28. Bxg4 {[%clk 0:00:03.3]} 28... hxg2# {[%clk 0:00:32.6]} 0-1

[Event "Late-Titled-Tuesday-Blitz-February-20-2024"]
[Site "Chess.com"]
[Date "2024.02.20"]
[Round "9"]
[White "Teidi96"]
[Black "LUISMIGUELOV"]
[Result "1-0"]
[WhiteElo "2265"]
[BlackElo "2169"]
[TimeControl "180+1"]
[EndTime "15:43:38 PST"]
[Termination "Teidi96 won by resignation"]

1. e4 {[%clk 0:02:07.9]} 1... c6 {[%clk 0:03:00.9]} 2. d4 {[%clk 0:02:06.9]}
2... d5 {[%clk 0:03:01.2]} 3. exd5 {[%clk 0:02:07.8]} 3... cxd5 {[%clk
0:03:00.2]} 4. c4 {[%clk 0:02:08.7]} 4... Nf6 {[%clk 0:02:58.9]} 5. Nc3 {[%clk
0:02:09.3]} 5... e6 {[%clk 0:02:58.9]} 6. Nf3 {[%clk 0:02:09.5]} 6... Bb4 {[%clk
0:02:59.1]} 7. cxd5 {[%clk 0:02:10.1]} 7... Nxd5 {[%clk 0:02:58.1]} 8. Bd2
{[%clk 0:02:10.6]} 8... O-O {[%clk 0:02:57.3]} 9. Bd3 {[%clk 0:02:10.9]} 9... a6
{[%clk 0:02:55]} 10. O-O {[%clk 0:02:10.5]} 10... Nxc3 {[%clk 0:02:47.3]} 11.
bxc3 {[%clk 0:02:11.4]} 11... Bd6 {[%clk 0:02:46.6]} 12. Re1 {[%clk 0:02:11.9]}
12... Nd7 {[%clk 0:02:46.2]} 13. c4 {[%clk 0:02:11.7]} 13... Nf6 {[%clk
0:02:45.4]} 14. Bc3 {[%clk 0:02:11.5]} 14... b6 {[%clk 0:02:43.6]} 15. Ne5
{[%clk 0:02:10.5]} 15... Bb7 {[%clk 0:02:43]} 16. Rb1 {[%clk 0:02:07.5]} 16...
Rc8 {[%clk 0:02:42.5]} 17. Qb3 {[%clk 0:02:05.8]} 17... Bxe5 {[%clk 0:02:33.2]}
18. Rxe5 {[%clk 0:02:05.2]} 18... Nd7 {[%clk 0:02:27.3]} 19. Rh5 {[%clk
0:02:02.5]} 19... g6 {[%clk 0:02:25]} 20. Rh3 {[%clk 0:02:02.9]} 20... Qg5
{[%clk 0:02:15.8]} 21. Rg3 {[%clk 0:01:59.8]} 21... Qh5 {[%clk 0:02:14.2]} 22.
Bb2 {[%clk 0:01:41]} 22... Rfe8 {[%clk 0:02:00.6]} 23. Qc3 {[%clk 0:01:29.6]}
23... b5 {[%clk 0:01:52]} 24. d5 {[%clk 0:01:00.6]} 24... e5 {[%clk 0:01:51.5]}
25. Re1 {[%clk 0:01:01.3]} 25... bxc4 {[%clk 0:01:46.7]} 26. Be2 {[%clk
0:01:01.9]} 26... Qf5 {[%clk 0:01:30.5]} 27. Bg4 {[%clk 0:01:01.8]} 27... Qf4
{[%clk 0:00:38.5]} 28. Bxd7 {[%clk 0:01:00.5]} 28... Bxd5 {[%clk 0:00:38.9]} 29.
Bxc8 {[%clk 0:00:55.2]} 29... Rxc8 {[%clk 0:00:38]} 30. Qxe5 {[%clk 0:00:48.7]}
30... Qxe5 {[%clk 0:00:37.5]} 31. Rxe5 {[%clk 0:00:48.9]} 31... Be6 {[%clk
0:00:31.7]} 32. Bc3 {[%clk 0:00:43.7]} 32... Rb8 {[%clk 0:00:27.4]} 33. Re1
{[%clk 0:00:42.5]} 33... Rb5 {[%clk 0:00:24.4]} 34. h3 {[%clk 0:00:41.3]} 34...
h5 {[%clk 0:00:23.6]} 35. Rge3 {[%clk 0:00:36.8]} 35... Rg5 {[%clk 0:00:21.3]}
36. Kh2 {[%clk 0:00:34.4]} 36... Bd5 {[%clk 0:00:17.7]} 37. Re8+ {[%clk
0:00:33.7]} 1-0

[Event "Late-Titled-Tuesday-Blitz-February-20-2024"]
[Site "Chess.com"]
[Date "2024.02.20"]
[Round "9"]
[White "IlyaGrigorjev"]
[Black "only_strong_moves"]
[Result "1-0"]
[WhiteElo "2911"]
[BlackElo "2687"]
[TimeControl "180+1"]
[EndTime "15:43:43 PST"]
[Termination "IlyaGrigorjev won by resignation"]

1. e4 {[%clk 0:03:00.9]} 1... e5 {[%clk 0:03:00.2]} 2. Nf3 {[%clk 0:03:00.9]}
2... Nc6 {[%clk 0:03:00.7]} 3. Bb5 {[%clk 0:03:01.3]} 3... a6 {[%clk 0:03:01.4]}
4. Ba4 {[%clk 0:03:01.4]} 4... Nge7 {[%clk 0:03:02]} 5. O-O {[%clk 0:02:57.1]}
5... Ng6 {[%clk 0:03:02.4]} 6. d4 {[%clk 0:02:57.4]} 6... exd4 {[%clk
0:03:03.3]} 7. Nxd4 {[%clk 0:02:58.2]} 7... Nxd4 {[%clk 0:03:04.2]} 8. Qxd4
{[%clk 0:02:59.1]} 8... b5 {[%clk 0:03:04.9]} 9. Bb3 {[%clk 0:02:59.8]} 9... Bb7
{[%clk 0:03:05.6]} 10. Rd1 {[%clk 0:03:00.4]} 10... Bd6 {[%clk 0:02:39.7]} 11.
Qxg7 {[%clk 0:02:54.1]} 11... Rf8 {[%clk 0:02:33.1]} 12. Qh6 {[%clk 0:02:11.2]}
12... Qe7 {[%clk 0:02:33]} 13. Nc3 {[%clk 0:02:11.1]} 13... O-O-O {[%clk
0:02:28.1]} 14. Be3 {[%clk 0:01:59.2]} 14... Rde8 {[%clk 0:02:21.5]} 15. Bd5
{[%clk 0:01:43]} 15... c6 {[%clk 0:02:16.7]} 16. Bb3 {[%clk 0:01:41.4]} 16...
Bc7 {[%clk 0:02:11.4]} 17. f3 {[%clk 0:01:21.3]} 17... Rg8 {[%clk 0:02:01.7]}
18. Rd2 {[%clk 0:01:04.6]} 18... Nh4 {[%clk 0:02:01.1]} 19. Kh1 {[%clk
0:01:02.4]} 19... d5 {[%clk 0:01:32]} 20. Re1 {[%clk 0:00:54.8]} 20... Rg6
{[%clk 0:01:08.2]} 21. Qxh7 {[%clk 0:00:54.3]} 21... Be5 {[%clk 0:01:06.1]} 22.
exd5 {[%clk 0:00:43.9]} 22... Rh8 {[%clk 0:01:06]} 23. d6 {[%clk 0:00:44.3]}
23... Qd7 {[%clk 0:00:33.1]} 24. Qxf7 {[%clk 0:00:43.8]} 24... Qxf7 {[%clk
0:00:19.6]} 25. Bxf7 {[%clk 0:00:43.5]} 25... Rxd6 {[%clk 0:00:19.3]} 26. Rxd6
{[%clk 0:00:42]} 26... Bxd6 {[%clk 0:00:20.2]} 27. Ne4 {[%clk 0:00:41.5]} 27...
Bc7 {[%clk 0:00:18.7]} 28. Be6+ {[%clk 0:00:38.6]} 28... Kb8 {[%clk 0:00:18.7]}
29. h3 {[%clk 0:00:32.6]} 29... Re8 {[%clk 0:00:12.9]} 30. Nc5 {[%clk 0:00:33]}
30... Bc8 {[%clk 0:00:06.3]} 31. Bxc8 {[%clk 0:00:30.7]} 31... Kxc8 {[%clk
0:00:07.2]} 32. Bf2 {[%clk 0:00:30.2]} 32... Rh8 {[%clk 0:00:06.9]} 33. Bxh4
{[%clk 0:00:29.4]} 33... Rxh4 {[%clk 0:00:07.6]} 34. Re8+ {[%clk 0:00:29.8]}
34... Bd8 {[%clk 0:00:07.6]} 35. Ne6 {[%clk 0:00:30.2]} 1-0

[Event "Late-Titled-Tuesday-Blitz-February-20-2024"]
[Site "Chess.com"]
[Date "2024.02.20"]
[Round "9"]
[White "manitodeplomo"]
[Black "MeisterJabo"]
[Result "1-0"]
[WhiteElo "2665"]
[BlackElo "2456"]
[TimeControl "180+1"]
[EndTime "15:43:43 PST"]
[Termination "manitodeplomo won on time"]

1. d4 {[%clk 0:03:00.9]} 1... f5 {[%clk 0:02:56.5]} 2. g3 {[%clk 0:02:59]} 2...
Nf6 {[%clk 0:02:55.3]} 3. Bg2 {[%clk 0:02:59.9]} 3... d5 {[%clk 0:02:53.3]} 4.
c4 {[%clk 0:02:59.4]} 4... c6 {[%clk 0:02:53.4]} 5. Nh3 {[%clk 0:02:57.2]} 5...
e6 {[%clk 0:02:53.4]} 6. O-O {[%clk 0:02:57.7]} 6... Bd6 {[%clk 0:02:52.7]} 7.
b3 {[%clk 0:02:57.5]} 7... O-O {[%clk 0:02:52.8]} 8. Ba3 {[%clk 0:02:57.4]} 8...
b5 {[%clk 0:02:46.1]} 9. Bxd6 {[%clk 0:02:51.4]} 9... Qxd6 {[%clk 0:02:45.9]}
10. c5 {[%clk 0:02:42.3]} 10... Qe7 {[%clk 0:02:42.7]} 11. f4 {[%clk 0:02:42.3]}
11... a5 {[%clk 0:02:33.5]} 12. a3 {[%clk 0:02:32.8]} 12... Bb7 {[%clk 0:02:04]}
13. Nf2 {[%clk 0:02:28.5]} 13... Ne4 {[%clk 0:02:01.1]} 14. e3 {[%clk
0:02:22.2]} 14... Nd7 {[%clk 0:01:55.8]} 15. Bxe4 {[%clk 0:02:19]} 15... dxe4
{[%clk 0:01:51.6]} 16. Nc3 {[%clk 0:02:16.6]} 16... b4 {[%clk 0:01:42.1]} 17.
axb4 {[%clk 0:02:13.6]} 17... axb4 {[%clk 0:01:43]} 18. Na2 {[%clk 0:02:12.7]}
18... Ba6 {[%clk 0:01:41.7]} 19. Re1 {[%clk 0:02:12.3]} 19... Rfb8 {[%clk
0:01:39.8]} 20. Qd2 {[%clk 0:02:12]} 20... Nf6 {[%clk 0:01:35.1]} 21. Nxb4
{[%clk 0:02:10.6]} 21... Bb5 {[%clk 0:01:35.8]} 22. Rec1 {[%clk 0:01:57]} 22...
Qd7 {[%clk 0:01:24.6]} 23. Nd1 {[%clk 0:01:40]} 23... Qb7 {[%clk 0:00:39.3]} 24.
Nc3 {[%clk 0:01:34.4]} 24... h5 {[%clk 0:00:26.8]} 25. h3 {[%clk 0:01:28]} 25...
Rxa1 {[%clk 0:00:19]} 26. Rxa1 {[%clk 0:01:26.6]} 26... Bf1 {[%clk 0:00:17.3]}
27. Kxf1 {[%clk 0:01:18.6]} 27... Qxb4 {[%clk 0:00:16.8]} 28. Kg2 {[%clk
0:01:16.7]} 28... Qxb3 {[%clk 0:00:13.2]} 29. Rb1 {[%clk 0:01:15.6]} 29... Qxb1
{[%clk 0:00:13.7]} 30. Nxb1 {[%clk 0:01:15.2]} 30... Rxb1 {[%clk 0:00:14.6]} 31.
Qa5 {[%clk 0:01:14.3]} 31... Nd5 {[%clk 0:00:12.4]} 32. Qd8+ {[%clk 0:01:14.5]}
32... Kh7 {[%clk 0:00:11.8]} 33. Qg5 {[%clk 0:01:13.8]} 33... g6 {[%clk
0:00:05.4]} 34. Qd8 {[%clk 0:01:07.1]} 34... Rb2+ {[%clk 0:00:04.7]} 35. Kg1
{[%clk 0:01:06.3]} 35... Rb1+ {[%clk 0:00:05.6]} 36. Kf2 {[%clk 0:01:06]} 36...
Rb2+ {[%clk 0:00:06.5]} 37. Ke1 {[%clk 0:01:06.2]} 37... Nxe3 {[%clk 0:00:03]}
38. Qd7+ {[%clk 0:01:04.4]} 38... Kh6 {[%clk 0:00:02.7]} 39. Qxc6 {[%clk
0:00:59]} 39... Rc2 {[%clk 0:00:01.5]} 40. Qe8 {[%clk 0:00:48]} 40... Ng2+
{[%clk 0:00:01]} 41. Kf1 {[%clk 0:00:48.3]} 1-0

[Event "Late-Titled-Tuesday-Blitz-February-20-2024"]
[Site "Chess.com"]
[Date "2024.02.20"]
[Round "9"]
[White "TheMagician"]
[Black "kylelancman"]
[Result "0-1"]
[WhiteElo "2197"]
[BlackElo "2436"]
[TimeControl "180+1"]
[EndTime "15:43:47 PST"]
[Termination "kylelancman won on time"]

1. e4 {[%clk 0:02:59.1]} 1... c5 {[%clk 0:02:59.2]} 2. Nf3 {[%clk 0:02:58.5]}
2... g6 {[%clk 0:02:59.5]} 3. d4 {[%clk 0:02:57.5]} 3... cxd4 {[%clk 0:03:00.4]}
4. Nxd4 {[%clk 0:02:57.7]} 4... Nc6 {[%clk 0:03:00.5]} 5. Nc3 {[%clk 0:02:56.6]}
5... Bg7 {[%clk 0:03:00.8]} 6. Be3 {[%clk 0:02:56.5]} 6... Nf6 {[%clk
0:03:00.9]} 7. Bc4 {[%clk 0:02:54]} 7... O-O {[%clk 0:03:00.7]} 8. Bb3 {[%clk
0:02:44.3]} 8... a5 {[%clk 0:02:41.4]} 9. a3 {[%clk 0:02:39.5]} 9... Ng4 {[%clk
0:02:38]} 10. Qxg4 {[%clk 0:02:30.4]} 10... Nxd4 {[%clk 0:02:38.2]} 11. Bxd4
{[%clk 0:01:48.7]} 11... Bxd4 {[%clk 0:02:39.1]} 12. Qg3 {[%clk 0:01:47.9]}
12... d6 {[%clk 0:02:31]} 13. O-O-O {[%clk 0:01:46.2]} 13... Bg7 {[%clk
0:02:29.4]} 14. f4 {[%clk 0:01:44.6]} 14... b5 {[%clk 0:01:50.7]} 15. e5 {[%clk
0:01:41.2]} 15... b4 {[%clk 0:01:45.3]} 16. Nb5 {[%clk 0:01:19.1]} 16... Ba6
{[%clk 0:01:32.3]} 17. a4 {[%clk 0:01:05.6]} 17... Bxb5 {[%clk 0:01:31.5]} 18.
axb5 {[%clk 0:01:04.7]} 18... a4 {[%clk 0:01:29.8]} 19. Bd5 {[%clk 0:01:01.1]}
19... Ra5 {[%clk 0:01:24.9]} 20. Bc6 {[%clk 0:00:58.8]} 20... a3 {[%clk
0:01:24.2]} 21. Qb3 {[%clk 0:00:40.2]} 21... a2 {[%clk 0:01:14.4]} 22. Kd2
{[%clk 0:00:36.2]} 22... dxe5+ {[%clk 0:01:13.8]} 23. Ke2 {[%clk 0:00:36.3]}
23... Qb6 {[%clk 0:00:58.9]} 24. Qxb4 {[%clk 0:00:21.5]} 24... exf4 {[%clk
0:00:58.2]} 25. Qb3 {[%clk 0:00:15.4]} 25... Rb8 {[%clk 0:00:40.9]} 26. Rc1
{[%clk 0:00:03.6]} 26... Bh6 {[%clk 0:00:33.2]} 27. Ra1 {[%clk 0:00:02.8]} 27...
Rd8 {[%clk 0:00:28.4]} 28. Rhe1 {[%clk 0:00:02.7]} 28... Rd2+ {[%clk 0:00:25.7]}
29. Kxd2 {[%clk 0:00:01.7]} 29... f3+ {[%clk 0:00:20.8]} 0-1